bitfinex/quotes_BTCUSD_20240717
["timestamp","ask_amount","ask_price","bid_price","bid_amount"]
[1721247236985,1.50283618,64659.0,64658.0,0.001913]
[1721247237173,1.50283618,64659.0,64658.0,0.000913]
[1721247238425,1.5799919,64659.0,64658.0,0.001913]
[1721247238631,1.5939919,64659.0,64658.0,0.002913]
[1721247238846,1.5579919,64659.0,64658.0,0.000913]
[1721247239068,1.5579919,64659.0,64658.0,0.001913]
[1721247239244,1.5659919,64659.0,64658.0,0.001913]
[1721247239591,1.5659919,64659.0,64658.0,0.000913]
[1721247239741,1.5719919,64659.0,64658.0,0.001913]
[1721247239944,1.55797858,64659.0,64658.0,0.000913]
[1721247240335,1.55797858,64659.0,64658.0,0.002913]
[1721247240336,1.57997858,64659.0,64658.0,0.002913]
[1721247240542,1.20152118,64659.0,64658.0,0.002913]
[1721247240950,1.51083618,64659.0,64658.0,0.002913]
[1721247241563,1.49683618,64659.0,64658.0,0.001913]
[1721247241959,1.50283618,64659.0,64658.0,0.001913]
[1721247242158,1.54891618,64659.0,64658.0,0.001913]
[1721247242366,1.54891618,64659.0,64658.0,0.002913]
[1721247242367,1.55691554,64659.0,64658.0,0.002913]
[1721247242812,1.55691369,64659.0,64658.0,0.002913]
[1721247243838,1.24759869,64659.0,64658.0,0.002913]
[1721247244040,1.24759176,64659.0,64658.0,0.002913]
[1721247244211,1.55690676,64659.0,64658.0,0.002913]
[1721247244796,0.13345244,64659.0,64658.0,0.0130441]
[1721247244998,0.13345244,64659.0,64658.0,0.1013441]
[1721247245225,0.18443492,64659.0,64658.0,0.1013441]
[1721247246282,0.16243492,64659.0,64658.0,0.0993441]
[1721247246491,0.17243492,64659.0,64658.0,0.1003441]
[1721247246818,0.17243492,64659.0,64658.0,0.1013441]
[1721247246819,0.17943492,64659.0,64658.0,0.1013441]
[1721247247693,0.16943492,64659.0,64658.0,0.1003441]
[1721247248058,0.17143492,64659.0,64658.0,0.1003441]
[1721247248507,0.17743492,64659.0,64658.0,0.1013441]
[1721247261618,0.17743492,64659.0,64658.0,0.002913]
[1721247261619,1.25227992,64659.0,64658.0,0.002913]
[1721247265225,1.2991562,64659.0,64658.0,0.002913]
[1721247265570,1.34522587,64659.0,64658.0,0.002913]
[1721247268278,1.34549245,64659.0,64658.0,0.002913]
[1721247268523,1.29940288,64659.0,64658.0,0.002913]
[1721247269916,0.79606492,64659.0,64658.0,0.091213]
[1721247270114,0.79606492,64659.0,64658.0,0.1160041]
[1721247271037,0.79606492,64659.0,64658.0,0.0277041]
[1721247271240,0.84217033,64659.0,64658.0,0.0277041]
[1721247271440,0.79606492,64659.0,64658.0,0.0277041]
[1721247271646,0.84219939,64659.0,64658.0,0.0277041]
[1721247271848,0.79606492,64659.0,64658.0,0.002913]
[1721247272047,0.84221002,64659.0,64658.0,0.002913]
[1721247272977,0.79606492,64659.0,64658.0,0.002913]
[1721247273755,0.91246358,64659.0,64658.0,0.002913]
[1721247274646,0.84324593,64659.0,64658.0,0.002913]
[1721247275458,0.93553613,64659.0,64658.0,0.002913]
[1721247276685,0.84324593,64659.0,64658.0,0.002913]
[1721247277649,0.95860868,64659.0,64658.0,0.002913]
[1721247277941,0.95946771,64659.0,64658.0,0.002913]
[1721247278977,0.95955036,64659.0,64658.0,0.002913]
[1721247279311,1.26884477,64659.0,64658.0,0.002913]
[1721247279490,1.29881855,64659.0,64658.0,0.002913]
[1721247279841,1.41431656,64659.0,64658.0,0.002913]
[1721247280187,1.29881855,64659.0,64658.0,0.002913]
[1721247280989,1.25087992,64659.0,64658.0,0.002913]
[1721247281149,1.29865511,64659.0,64658.0,0.002913]
[1721247281529,1.29865399,64659.0,64658.0,0.002913]
[1721247284273,1.25087992,64659.0,64658.0,0.002913]
[1721247284471,1.29904551,64659.0,64658.0,0.002913]
[1721247285229,1.15354551,64659.0,64658.0,0.002913]
[1721247285637,1.10537992,64659.0,64658.0,0.002913]
[1721247285854,1.15345337,64659.0,64658.0,0.002913]
[1721247287539,1.15347535,64659.0,64658.0,0.002913]
[1721247290971,1.15319995,64659.0,64658.0,0.002913]
[1721247291323,1.15319806,64659.0,64658.0,0.002913]
[1721247294008,1.10537992,64659.0,64658.0,0.002913]
[1721247294217,1.15336402,64659.0,64658.0,0.002913]
[1721247297333,1.15335052,64659.0,64658.0,0.002913]
[1721247299156,1.26888121,64659.0,64658.0,0.002913]
[1721247299332,1.15335052,64659.0,64658.0,0.002913]
[1721247300599,1.15327947,64659.0,64658.0,0.002913]
[1721247301048,1.10537992,64659.0,64658.0,0.002913]
[1721247301240,1.15315984,64659.0,64658.0,0.002913]
[1721247302985,1.15303207,64659.0,64658.0,0.002913]
[1721247306125,1.15348494,64659.0,64658.0,0.002913]
[1721247306352,0.84416994,64659.0,64658.0,0.141513]
[1721247307220,0.84416994,64659.0,64658.0,0.002913]
[1721247309375,0.84416734,64659.0,64658.0,0.002913]
[1721247309814,0.85184731,64659.0,64658.0,0.002913]
[1721247313078,1.83521096,64659.0,64658.0,0.002913]
[1721247313304,2.02885905,64659.0,64658.0,0.002913]
[1721247313505,1.94055905,64659.0,64658.0,0.002913]
[1721247313776,2.11195582,64659.0,64658.0,0.002913]
[1721247313917,2.1279329,64659.0,64658.0,0.002913]
[1721247314119,2.1219329,64659.0,64658.0,0.001913]
[1721247314320,2.19869787,64659.0,64658.0,0.001913]
[1721247314751,2.21269787,64659.0,64658.0,0.000913]
[1721247314998,2.19969787,64659.0,64658.0,0.000913]
[1721247315172,2.21269787,64659.0,64658.0,0.001913]
[1721247315575,2.00665905,64659.0,64658.0,0.001913]
[1721247318726,1.95873374,64659.0,64658.0,0.001913]
[1721247318924,2.00661096,64659.0,64658.0,0.001913]
[1721247319125,1.95873374,64659.0,64658.0,0.001913]
[1721247319377,2.00661295,64659.0,64658.0,0.001913]
[1721247319797,2.00661317,64659.0,64658.0,0.001913]
[1721247320947,2.05661317,64659.0,64658.0,0.001913]
[1721247321262,2.00661317,64659.0,64658.0,0.001913]
[1721247321998,1.95873374,64659.0,64658.0,0.001913]
[1721247322198,2.0065861,64659.0,64658.0,0.001913]
[1721247325220,1.95873374,64659.0,64658.0,0.001913]
[1721247325423,2.0064978,64659.0,64658.0,0.001913]
[1721247326383,2.00647602,64659.0,64658.0,0.001913]
[1721247328605,1.95873374,64659.0,64658.0,0.001913]
[1721247328802,2.00646508,64659.0,64658.0,0.001913]
[1721247329005,1.95873374,64659.0,64658.0,0.001913]
[1721247329182,2.05646613,64659.0,64658.0,0.001913]
[1721247329805,2.05646758,64659.0,64658.0,0.001913]
[1721247330353,2.00646758,64659.0,64658.0,0.001913]
[1721247331857,1.99638758,64659.0,64658.0,0.001913]
[1721247334991,1.95873374,64659.0,64658.0,0.001913]
[1721247335195,1.99633761,64659.0,64658.0,0.001913]
[1721247338248,1.95873374,64659.0,64658.0,0.001913]
[1721247338468,1.99631955,64659.0,64658.0,0.001913]
[1721247338671,1.95873374,64659.0,64658.0,0.001913]
[1721247338895,2.046317,64659.0,64658.0,0.001913]
[1721247339068,1.996317,64659.0,64658.0,0.001913]
[1721247340032,1.996317,64659.0,64658.0,0.147813]
[1721247340033,1.27862026,64659.0,64658.0,0.147813]
[1721247340239,0.86930526,64659.0,64658.0,0.236113]
[1721247340441,0.55999026,64659.0,64658.0,0.236113]
[1721247340647,0.213092,64659.0,64658.0,0.236113]
[1721247340856,0.213092,64659.0,64658.0,0.2597341]
[1721247340857,0.04245792,64659.0,64658.0,0.2597341]
[1721247341047,0.02251,64659.0,64658.0,0.4143931]
[1721247341167,0.02051,64659.0,64658.0,0.2607341]
[1721247341366,0.03015906,64659.0,64658.0,0.2607341]
[1721247341989,0.03115906,64659.0,64658.0,0.2607341]
[1721247342189,0.03115906,64659.0,64658.0,0.2597341]
[1721247342389,0.01915906,64659.0,64658.0,0.2597341]
[1721247343697,0.01915906,64659.0,64658.0,0.2607341]
[1721247344494,0.01915906,64659.0,64658.0,0.1724341]
[1721247344741,1.10176106,64659.0,64658.0,0.001913]
[1721247344950,1.14785786,64659.0,64658.0,0.001913]
[1721247345149,1.11774132,64659.0,64658.0,0.001913]
[1721247347015,1.16383598,64659.0,64658.0,0.001913]
[1721247347195,1.14785572,64659.0,64658.0,0.001913]
[1721247347764,1.10176106,64659.0,64658.0,0.001913]
[1721247348057,1.14785596,64659.0,64658.0,0.001913]
[1721247348383,0.79244606,64659.0,64658.0,0.082913]
[1721247348513,0.79244606,64659.0,64658.0,0.145613]
[1721247358035,0.01915906,64659.0,64658.0,0.300272]
[1721247358288,0.01915906,64659.0,64658.0,0.3931749]
[1721247358441,0.01915906,64659.0,64658.0,1.16619464]
[1721247358915,0.01915906,64659.0,64658.0,1.47551364]
[1721247359863,0.00815906,64659.0,64658.0,1.47551364]
[1721247360269,0.00915906,64659.0,64658.0,1.47751364]
[1721247360723,0.00915906,64659.0,64658.0,0.2415159]
[1721247360926,0.00915906,64659.0,64658.0,0.148613]
[1721247361345,0.00815906,64659.0,64658.0,0.144613]
[1721247361513,0.00815906,64659.0,64658.0,0.312272]
[1721247361716,0.01015906,64659.0,64658.0,0.315272]
[1721247361895,0.01015906,64659.0,64658.0,0.312272]
[1721247362250,0.00915906,64659.0,64658.0,0.3963761]
[1721247363555,0.00915906,64659.0,64658.0,0.4023761]
[1721247368745,0.00915906,64659.0,64658.0,0.7116951]
[1721247375605,0.00915906,64659.0,64658.0,0.4023761]
[1721247376465,0.00915906,64659.0,64658.0,0.4906761]
[1721247378555,0.00915906,64659.0,64658.0,0.7999951]
[1721247379060,0.00915906,64659.0,64658.0,1.57301484]
[1721247379517,0.00915906,64659.0,64658.0,1.70145123]
[1721247381153,0.00915906,64659.0,64658.0,1.69845123]
[1721247381154,0.00815906,64659.0,64658.0,1.69845123]
[1721247381567,0.00915906,64659.0,64658.0,1.70445123]
[1721247381770,0.00915906,64659.0,64658.0,1.69245123]
[1721247382291,0.00915906,64659.0,64658.0,1.82474081]
[1721247382678,0.01015906,64659.0,64658.0,1.83074081]
[1721247382883,0.00915906,64659.0,64658.0,1.82474081]
[1721247383887,0.00915906,64659.0,64658.0,1.83474081]
[1721247383888,0.01015906,64659.0,64658.0,1.83474081]
[1721247384093,0.01015906,64659.0,64658.0,1.84574081]
[1721247384633,0.00815906,64659.0,64658.0,1.82474081]
[1721247384802,0.00815906,64659.0,64658.0,1.83874081]
[1721247385006,0.00915906,64659.0,64658.0,1.84474081]
[1721247385354,0.00815906,64659.0,64658.0,1.69631484]
[1721247385564,0.00815906,64659.0,64658.0,1.83074171]
[1721247385565,0.00915906,64659.0,64658.0,1.83074171]
[1721247385890,0.00915906,64659.0,64658.0,1.84474171]
[1721247386095,0.00815906,64659.0,64658.0,1.83874171]
[1721247386273,0.00915906,64659.0,64658.0,1.84474171]
[1721247387294,0.00915906,64659.0,64658.0,1.83074171]
[1721247387449,0.00915906,64659.0,64658.0,1.84474171]
[1721247387830,0.01015906,64659.0,64658.0,1.85074171]
[1721247388377,0.00815906,64659.0,64658.0,1.83874171]
[1721247388702,0.00815906,64659.0,64658.0,1.83874108]
[1721247394803,0.00815906,64659.0,64658.0,1.71031484]
[1721247395003,0.00815906,64659.0,64658.0,1.83873835]
[1721247398054,0.00815906,64659.0,64658.0,1.71031484]
[1721247398264,0.00815906,64659.0,64658.0,1.83873835]
[1721247400316,0.00815906,64659.0,64658.0,2.19805735]
[1721247400524,0.4662,64666.0,64658.0,2.19805735]
[1721247400525,0.4662,64666.0,64665.0,1.441787]
[1721247400736,0.00083,64674.0,64673.0,0.05]
[1721247400932,0.00083,64674.0,64673.0,1.77767325]
[1721247401132,0.00083,64674.0,64673.0,2.08692125]
[1721247401333,0.00083,64674.0,64673.0,2.059886]
[1721247401541,0.00083,64674.0,64673.0,2.26423557]
[1721247402304,0.04616746,64693.0,64689.0,0.309171]
[1721247402305,0.11166746,64693.0,64689.0,0.309171]
[1721247402502,0.0655,64693.0,64691.0,0.154579]
[1721247403569,0.0655,64693.0,64690.0,0.154581]
[1721247403728,0.0655,64693.0,64691.0,0.05177814]
[1721247404260,0.0655,64693.0,64691.0,0.20635914]
[1721247404457,0.1655,64693.0,64691.0,0.20635914]
[1721247405098,0.0655,64693.0,64692.0,0.154578]
[1721247405320,0.0705,64693.0,64692.0,0.154578]
[1721247405528,0.005,64693.0,64692.0,0.54620501]
[1721247405732,0.005,64693.0,64692.0,0.85536201]
[1721247406150,0.007,64693.0,64692.0,0.85536201]
[1721247406359,0.06233,64697.0,64696.0,0.154569]
[1721247406750,0.00083,64697.0,64696.0,0.154569]
[1721247406955,0.00083,64697.0,64696.0,0.240103]
[1721247408624,0.00183,64697.0,64696.0,0.240103]
[1721247408797,0.00183,64697.0,64696.0,0.085534]
[1721247409374,0.00083,64697.0,64696.0,0.085534]
[1721247409574,0.00083,64697.0,64696.0,0.086534]
[1721247410112,0.00083,64697.0,64696.0,0.550241]
[1721247410313,0.00083,64697.0,64696.0,0.241103]
[1721247410723,0.00083,64697.0,64696.0,0.549241]
[1721247411059,0.00083,64697.0,64696.0,0.550241]
[1721247411629,0.00083,64697.0,64696.0,0.549241]
[1721247411834,0.00083,64697.0,64696.0,0.550241]
[1721247412413,0.00083,64697.0,64696.0,0.549241]
[1721247412614,0.00083,64697.0,64696.0,0.550241]
[1721247412849,0.00083,64697.0,64696.0,1.32289874]
[1721247413379,0.00083,64697.0,64696.0,2.28212442]
[1721247413554,0.06413,64720.0,64718.0,0.154516]
[1721247413758,0.06413,64720.0,64718.0,0.4790006]
[1721247414034,0.06413,64720.0,64719.0,0.463542]
[1721247414193,0.00083,64720.0,64719.0,0.463542]
[1721247414412,0.00083,64720.0,64719.0,0.154514]
[1721247414585,0.00083,64720.0,64718.0,0.0154516]
[1721247414784,0.00083,64720.0,64719.0,0.03244856]
[1721247415413,0.00283,64720.0,64719.0,0.03244856]
[1721247415940,0.00183,64720.0,64719.0,0.03244856]
[1721247416988,0.154531,64712.0,64699.0,0.0661]
[1721247417201,0.154534,64711.0,64705.0,0.154546]
[1721247417403,0.309057,64713.0,64706.0,0.154542]
[1721247417806,0.154527,64714.0,64705.0,0.309092]
[1721247417999,0.154528,64713.0,64709.0,0.154537]
[1721247418844,0.155528,64713.0,64708.0,0.15454]
[1721247419046,0.15453,64712.0,64708.0,0.15454]
[1721247420493,0.154534,64711.0,64706.0,0.1854522]
[1721247420566,0.154534,64711.0,64709.0,0.002]
[1721247420765,0.298935,64710.0,64709.0,0.002]
[1721247420970,0.76238774,64710.0,64709.0,0.002]
[1721247421169,1.07145874,64710.0,64709.0,0.002]
[1721247421368,0.154559,64701.0,64696.0,0.154568]
[1721247421572,0.154554,64702.0,64697.0,0.20431961]
[1721247421710,0.3091,64704.0,64697.0,0.04696061]
[1721247421711,0.154557,64701.0,64697.0,0.04696061]
[1721247422331,0.154546,64706.0,64702.0,0.154554]
[1721247422743,0.1444,64710.0,64701.0,0.00309082]
[1721247422939,0.1444,64710.0,64702.0,0.05033784]
[1721247422940,0.154541,64708.0,64702.0,0.05033784]
[1721247423141,0.1444,64710.0,64703.0,0.00309074]
[1721247423347,0.154527,64714.0,64709.0,0.154536]
[1721247423549,0.1,64713.0,64709.0,0.154536]
[1721247423750,0.254529,64713.0,64706.0,0.309089]
[1721247424018,0.254529,64713.0,64703.0,0.15438174]
[1721247424019,0.254529,64713.0,64708.0,0.154539]
[1721247425428,0.154531,64712.0,64708.0,0.154539]
[1721247425617,0.154531,64712.0,64707.0,0.05138086]
[1721247425618,0.60052,64708.0,64707.0,0.05138086]
[1721247425808,0.60052,64708.0,64702.0,0.20489084]
[1721247425809,0.154543,64707.0,64702.0,0.20489084]
[1721247427056,0.154543,64707.0,64702.0,0.05033784]
[1721247427267,0.1379,64708.0,64704.0,0.154549]
[1721247427467,0.1379,64708.0,64705.0,0.154547]
[1721247427664,0.1379,64708.0,64706.0,0.08230958]
[1721247428196,0.29144,64708.0,64706.0,0.08230958]
[1721247428615,0.29144,64708.0,64703.0,0.154551]
[1721247429235,0.29244,64708.0,64703.0,0.154551]
[1721247429655,0.29144,64708.0,64703.0,0.154551]
[1721247430051,0.29644,64708.0,64703.0,0.154551]
[1721247430255,0.154543,64707.0,64703.0,0.154551]
[1721247430460,0.154545,64706.0,64704.0,0.08231248]
[1721247430656,0.154547,64705.0,64704.0,0.08231248]
[1721247430852,0.154545,64706.0,64702.0,0.20489084]
[1721247431095,0.450983,64708.0,64703.0,0.154551]
[1721247431232,0.154543,64707.0,64703.0,0.154551]
[1721247431427,0.29144,64708.0,64703.0,0.154551]
[1721247431706,0.29244,64708.0,64704.0,0.08231178]
[1721247432058,0.002,64706.0,64704.0,0.08231178]
[1721247432850,0.002,64706.0,64705.0,0.772737]
[1721247433062,0.309055,64714.0,64705.0,0.772737]
[1721247433063,0.0649,64717.0,64707.0,0.0807]
[1721247433262,0.0649,64717.0,64710.0,0.154535]
[1721247433263,0.154525,64715.0,64710.0,0.154535]
[1721247433471,0.309044,64716.0,64711.0,0.08564884]
[1721247433472,0.154527,64714.0,64711.0,0.08564884]
[1721247434943,0.309069,64711.0,64702.0,0.05033784]
[1721247435142,0.309069,64711.0,64692.0,0.0615]
[1721247435143,0.0649,64705.0,64692.0,0.0615]
[1721247435295,0.0649,64705.0,64694.0,0.154573]
[1721247435296,0.154561,64700.0,64694.0,0.154573]
[1721247435496,0.154561,64700.0,64695.0,0.157364]
[1721247435722,0.154561,64700.0,64696.0,0.0917876]
[1721247435924,0.154561,64700.0,64697.0,0.002794]
[1721247436421,0.30911,64702.0,64697.0,0.002794]
[1721247436422,0.236861,64699.0,64697.0,0.002794]
[1721247437496,0.0823,64699.0,64697.0,0.002794]
[1721247437653,0.15456,64700.0,64697.0,0.002794]
[1721247437873,0.15556,64700.0,64698.0,0.05643006]
[1721247438471,0.155561,64699.0,64698.0,0.05643006]
[1721247438693,0.155561,64699.0,64696.0,0.0917876]
[1721247438694,0.463684,64699.0,64696.0,0.0917876]
[1721247438917,0.154561,64699.0,64697.0,0.002794]
[1721247439130,0.154561,64699.0,64697.0,0.006]
[1721247439392,0.154561,64699.0,64698.0,0.05615046]
[1721247441018,0.154561,64699.0,64698.0,0.06515046]
[1721247441238,0.155561,64699.0,64698.0,0.07115046]
[1721247442425,0.155561,64699.0,64698.0,0.015]
[1721247454397,0.001,64699.0,64698.0,0.015]
[1721247459588,0.001,64699.0,64698.0,0.471028]
[1721247459823,0.001,64699.0,64698.0,0.625592]
[1721247460069,0.001,64699.0,64698.0,1.0630785]
[1721247460548,0.001,64699.0,64698.0,1.07203335]
[1721247461023,0.001,64699.0,64698.0,1.20038957]
[1721247463186,0.001,64699.0,64698.0,1.35477131]
[1721247463383,0.001,64699.0,64698.0,1.57537131]
[1721247463684,0.001,64699.0,64698.0,1.88449931]
[1721247463926,0.001,64699.0,64698.0,2.24362731]
[1721247464457,0.001,64699.0,64698.0,2.46467623]
[1721247464589,0.001,64699.0,64698.0,2.49244386]
[1721247464989,0.00083,64711.0,64710.0,1.277848]
[1721247465196,0.00083,64711.0,64710.0,1.93553553]
[1721247465405,0.00083,64711.0,64710.0,1.88553553]
[1721247466471,0.00083,64711.0,64710.0,1.88549808]
[1721247466874,0.00083,64711.0,64710.0,1.75717931]
[1721247467078,0.00083,64711.0,64710.0,1.88550095]
[1721247467683,0.00083,64711.0,64710.0,1.36482995]
[1721247467887,0.00835,64728.0,64721.0,0.0657]
[1721247468089,0.00835,64728.0,64724.0,0.154501]
[1721247468285,0.00835,64728.0,64725.0,0.002794]
[1721247468485,0.162843,64728.0,64725.0,0.002794]
[1721247468683,0.162843,64728.0,64721.0,0.0657]
[1721247468684,0.162843,64728.0,64723.0,0.157296]
[1721247468861,0.162843,64728.0,64724.0,0.0532023]
[1721247469066,0.62016579,64726.0,64725.0,0.002794]
[1721247469291,0.543063,64716.0,64715.0,0.002794]
[1721247469492,0.388542,64716.0,64706.0,0.154545]
[1721247469715,0.154531,64712.0,64707.0,0.154542]
[1721247469909,0.154531,64712.0,64708.0,0.002794]
[1721247470132,0.388542,64716.0,64709.0,0.0157336]
[1721247470133,0.15453,64713.0,64709.0,0.0157336]
[1721247470336,0.309054,64714.0,64710.0,0.002794]
[1721247470337,0.154531,64712.0,64710.0,0.002794]
[1721247472886,0.154557,64701.0,64700.0,0.002794]
[1721247474194,0.154557,64701.0,64700.0,0.004794]
[1721247474417,0.154557,64701.0,64700.0,0.002]
[1721247474746,0.154557,64701.0,64700.0,0.005]
[1721247474948,0.154557,64701.0,64700.0,0.02291056]
[1721247477544,0.154557,64701.0,64700.0,0.02382356]
[1721247483560,0.772785,64701.0,64700.0,0.02382356]
[1721247483762,0.772785,64701.0,64700.0,0.005913]
[1721247484170,0.772785,64701.0,64700.0,0.000913]
[1721247484589,0.772785,64701.0,64700.0,0.001913]
[1721247486293,0.463671,64701.0,64700.0,0.001913]
[1721247490323,0.154555,64702.0,64700.0,0.001913]
[1721247490528,0.154553,64703.0,64701.0,0.0793183]
[1721247490704,0.154554,64702.0,64701.0,0.0793183]
[1721247491083,0.154554,64702.0,64701.0,0.0160183]
[1721247491903,0.605663,64702.0,64701.0,0.0160183]
[1721247492508,0.605663,64702.0,64700.0,0.000913]
[1721247492509,0.463671,64701.0,64700.0,0.000913]
[1721247492738,0.772785,64701.0,64700.0,0.000913]
[1721247492908,1.12803001,64701.0,64700.0,0.000913]
[1721247493111,1.20673001,64701.0,64700.0,0.000913]
[1721247493321,1.49427421,64701.0,64700.0,0.000913]
[1721247493646,1.82757441,64701.0,64700.0,0.000913]
[1721247493929,1.86359398,64701.0,64700.0,0.000913]
[1721247494275,1.82757441,64701.0,64700.0,0.000913]
[1721247494709,1.86367514,64701.0,64700.0,0.000913]
[1721247494908,1.86367514,64701.0,64700.0,0.001913]
[1721247495125,1.87567514,64701.0,64700.0,0.001913]
[1721247495312,1.86367514,64701.0,64700.0,0.000913]
[1721247495739,1.88167514,64701.0,64700.0,0.002913]
[1721247497420,1.84157441,64701.0,64700.0,0.001913]
[1721247497616,1.84157441,64701.0,64700.0,0.002913]
[1721247497617,1.99656844,64701.0,64700.0,0.002913]
[1721247498064,1.99656719,64701.0,64700.0,0.002913]
[1721247499180,1.9965653,64701.0,64700.0,0.002913]
[1721247500326,1.8813919,64701.0,64700.0,0.002913]
[1721247500524,1.88139206,64701.0,64700.0,0.002913]
[1721247500725,1.8809249,64701.0,64700.0,0.002913]
[1721247502400,1.97299368,64701.0,64700.0,0.002913]
[1721247503848,1.84557268,64701.0,64700.0,0.002913]
[1721247504090,1.9729063,64701.0,64700.0,0.002913]
[1721247504289,2.0611063,64701.0,64700.0,0.002913]
[1721247505384,1.95305677,64701.0,64700.0,0.002913]
[1721247506519,2.06812901,64701.0,64700.0,0.002913]
[1721247507075,2.06812901,64701.0,64700.0,1e-06]
[1721247507076,2.86787081,64701.0,64700.0,1e-06]
[1721247507282,2.97891562,64701.0,64700.0,1e-06]
[1721247507506,3.02888586,64701.0,64700.0,1e-06]
[1721247507702,2.96172315,64701.0,64700.0,1e-06]
[1721247508079,2.96172315,64701.0,64697.0,0.000913]
[1721247508080,1.843174,64698.0,64697.0,0.000913]
[1721247508280,2.48647451,64698.0,64697.0,0.000913]
[1721247509185,2.79560251,64698.0,64697.0,1e-06]
[1721247509376,2.80960251,64698.0,64697.0,1e-06]
[1721247509886,2.75960251,64698.0,64697.0,1e-06]
[1721247510081,2.72505536,64698.0,64697.0,1e-06]
[1721247510284,2.80929906,64698.0,64697.0,1e-06]
[1721247510933,2.82329906,64698.0,64697.0,0.001001]
[1721247513267,2.78905536,64698.0,64697.0,0.001001]
[1721247513414,2.82302011,64698.0,64697.0,0.001001]
[1721247516628,2.82300742,64698.0,64697.0,0.001001]
[1721247516826,2.78905536,64698.0,64697.0,0.001001]
[1721247517119,2.82288906,64698.0,64697.0,0.001001]
[1721247519765,2.78905536,64698.0,64697.0,0.001001]
[1721247519892,2.82295867,64698.0,64697.0,0.001001]
[1721247520323,2.77295867,64698.0,64697.0,0.001001]
[1721247520736,2.82295867,64698.0,64697.0,0.001001]
[1721247522935,2.82294873,64698.0,64697.0,0.001001]
[1721247525171,2.89277187,64698.0,64697.0,0.001001]
[1721247526233,2.85851716,64698.0,64697.0,0.001001]
[1721247526448,2.89201904,64698.0,64697.0,0.001001]
[1721247526651,2.89201901,64698.0,64697.0,0.001001]
[1721247527399,3.03028847,64698.0,64697.0,0.001001]
[1721247528228,2.89201901,64698.0,64697.0,0.001001]
[1721247528458,2.91626438,64698.0,64697.0,0.001001]
[1721247529553,2.91577746,64698.0,64697.0,0.001001]
[1721247534607,2.91577746,64698.0,64697.0,1e-06]
[1721247535337,3.07142481,64698.0,64697.0,1e-06]
[1721247535950,3.07127691,64698.0,64697.0,1e-06]
[1721247536384,2.81330073,64698.0,64697.0,1e-06]
[1721247536569,2.91564665,64698.0,64697.0,1e-06]
[1721247539106,2.81330073,64698.0,64697.0,1e-06]
[1721247539311,2.91574386,64698.0,64697.0,1e-06]
[1721247541535,2.81330073,64698.0,64697.0,1e-06]
[1721247541765,2.91575721,64698.0,64697.0,1e-06]
[1721247544801,2.81330073,64698.0,64697.0,1e-06]
[1721247545003,2.55346003,64698.0,64697.0,1e-06]
[1721247545176,2.15672965,64698.0,64697.0,1e-06]
[1721247545376,2.22143722,64698.0,64697.0,1e-06]
[1721247546189,2.3772341,64698.0,64697.0,1e-06]
[1721247546366,2.22143722,64698.0,64697.0,1e-06]
[1721247546566,2.39177577,64698.0,64697.0,1e-06]
[1721247546987,2.2374262,64698.0,64697.0,1e-06]
[1721247547861,2.13520629,64698.0,64697.0,1e-06]
[1721247548008,2.24338021,64698.0,64697.0,1e-06]
[1721247554279,2.24398154,64698.0,64697.0,1e-06]
[1721247554698,2.13520629,64698.0,64697.0,1e-06]
[1721247554925,2.24398092,64698.0,64697.0,1e-06]
[1721247555125,2.39833049,64698.0,64697.0,1e-06]
[1721247557599,2.3982544,64698.0,64697.0,1e-06]
[1721247559041,2.6824144,64698.0,64697.0,1e-06]
[1721247559248,2.7054144,64698.0,64697.0,1e-06]
[1721247559491,2.68942542,64698.0,64697.0,1e-06]
[1721247560713,2.6159066,64698.0,64697.0,1e-06]
[1721247560869,2.68691698,64698.0,64697.0,1e-06]
[1721247563985,2.68547371,64698.0,64697.0,1e-06]
[1721247564335,2.68553939,64698.0,64697.0,1e-06]
[1721247565117,2.68554209,64698.0,64697.0,1e-06]
[1721247567268,2.68456314,64698.0,64697.0,1e-06]
[1721247568265,2.61956314,64698.0,64697.0,1e-06]
[1721247569825,2.51572688,64698.0,64697.0,1e-06]
[1721247570032,2.61854382,64698.0,64697.0,1e-06]
[1721247570482,2.61853593,64698.0,64697.0,1e-06]
[1721247571241,2.61840277,64698.0,64697.0,1e-06]
[1721247573730,2.61864277,64698.0,64697.0,1e-06]
[1721247575291,2.61947277,64698.0,64697.0,1e-06]
[1721247576955,2.6193158,64698.0,64697.0,1e-06]
[1721247577411,2.5693158,64698.0,64697.0,1e-06]
[1721247577876,2.6193158,64698.0,64697.0,1e-06]
[1721247580092,2.61942326,64698.0,64697.0,1e-06]
[1721247580321,2.56942326,64698.0,64697.0,1e-06]
[1721247581272,2.61942326,64698.0,64697.0,1e-06]
[1721247583324,2.61931459,64698.0,64697.0,1e-06]
[1721247583654,2.549968,64698.0,64697.0,1e-06]
[1721247583860,2.61928775,64698.0,64697.0,1e-06]
[1721247586481,2.53108775,64698.0,64697.0,1e-06]
[1721247586651,2.5432943,64698.0,64697.0,1e-06]
[1721247589948,2.54409333,64698.0,64697.0,1e-06]
[1721247593248,2.54410037,64698.0,64697.0,1e-06]
[1721247593423,2.44035688,64698.0,64697.0,1e-06]
[1721247593621,2.54411113,64698.0,64697.0,1e-06]
[1721247596365,2.54410724,64698.0,64697.0,1e-06]
[1721247599598,2.54354476,64698.0,64697.0,1e-06]
[1721247600318,2.99677276,64698.0,64697.0,1e-06]
[1721247600541,2.99677276,64698.0,64675.0,0.143]
[1721247600542,0.654616,64676.0,64675.0,0.143]
[1721247600740,0.83088637,64676.0,64675.0,0.143]
[1721247600945,0.93088637,64676.0,64675.0,0.143]
[1721247601591,1.24011937,64676.0,64675.0,0.143]
[1721247601800,0.8972682,64676.0,64675.0,0.143]
[1721247602001,0.94214477,64676.0,64675.0,0.1662113]
[1721247602196,0.9002682,64676.0,64675.0,0.1662113]
[1721247602606,0.94477642,64676.0,64675.0,0.1662113]
[1721247603147,0.9002682,64676.0,64675.0,0.1662113]
[1721247603352,1.01601985,64676.0,64675.0,0.1662113]
[1721247604537,0.9446444,64676.0,64675.0,0.1662113]
[1721247605010,0.9002682,64676.0,64675.0,0.1662113]
[1721247605181,0.94464367,64676.0,64675.0,0.1662113]